lending/lending_fUSD_20251106
["ID","MTS","AMOUNT","RATE_DAILY","PERIOD"]
[393304704,1762443049834,-373.527896,0.00017521,2]
[393304705,1762443049844,-151.815308,0.00017521,2]
[393304706,1762443049854,-151.815308,0.00017521,2]
[393304707,1762443049865,-373.527896,0.00017521,2]
[393304708,1762443049875,-373.527896,0.00017521,2]
[393304709,1762443049885,-151.815308,0.00017521,2]
[393304710,1762443049895,-151.0,0.00017521,2]
[393304711,1762443049905,-373.527896,0.00017521,2]
[393304712,1762443049915,-373.527896,0.00017521,2]
[393304713,1762443049925,-151.815308,0.00017521,2]
[393304714,1762443049939,-151.0,0.00017521,2]
[393304715,1762443049954,-151.815308,0.00017521,2]
[393304716,1762443049964,-151.0,0.00017521,2]
[393304717,1762443049976,-373.527896,0.00017521,2]
[393304718,1762443049987,-151.815308,0.00017521,2]
[393304719,1762443049996,-373.527896,0.00017521,2]
[393304720,1762443050006,-151.0,0.00017521,2]
[393304721,1762443050016,-151.815308,0.00017521,2]
[393304722,1762443050027,-373.527896,0.00017521,2]
[393304723,1762443050037,-151.0,0.00017521,2]
[393304724,1762443050047,-151.815308,0.00017521,2]
[393304725,1762443050057,-151.0,0.00017521,2]
[393304726,1762443050067,-151.815308,0.00017521,2]
[393304727,1762443050078,-373.527896,0.00017521,2]
[393304728,1762443050089,-151.0,0.00017521,2]
[393304729,1762443050099,-151.815305,0.00017521,2]
[393304730,1762443050109,-151.0,0.00017521,2]
[393304731,1762443050119,-373.527896,0.00017521,2]
[393304732,1762443050129,-373.527896,0.00017521,2]
[393304733,1762443050139,-151.0,0.00017521,2]
[393304734,1762443050149,-168.012649,0.00017521,2]
[393304735,1762443050159,-373.527896,0.00017521,2]
[393304736,1762443050169,-373.527897,0.00017521,2]
[393304737,1762443050179,-151.0,0.00017521,2]
[393304738,1762443050189,-151.0,0.00017521,2]
[393304739,1762443050207,-151.0,0.00017521,2]
[393304740,1762443050218,-300.623423,0.00017521,2]
[393304741,1762443050228,-151.0,0.00017521,2]
[393304742,1762443050238,-151.0,0.00017521,2]
[393304743,1762443050248,-151.0,0.00017521,2]
[393304744,1762443050258,-182.865907,0.00017521,2]
[393304745,1762443050268,-151.0,0.00017521,2]
[393304746,1762443050278,-151.0,0.00017521,2]
[393304747,1762443050291,-151.0,0.00017521,2]
[393304748,1762443050301,-156.456452,0.00017521,2]
[393304749,1762443050311,-151.0,0.00017521,2]
[393304750,1762443050320,-151.0,0.00017521,2]
[393304751,1762443050332,-151.0,0.00017521,2]
[393304752,1762443050342,-151.0,0.00017521,2]
[393304753,1762443050352,-151.0,0.00017521,2]
[393304754,1762443050371,-151.0,0.00017521,2]
[393304755,1762443050385,-151.0,0.00017521,2]
[393304756,1762443050395,-255.149941,0.00017521,2]
[393304757,1762443050406,-1008.276394,0.00017521,2]
[393304758,1762443050416,-1008.276394,0.00017521,2]
[393304759,1762443050427,-1008.276394,0.00017521,2]
[393304760,1762443050438,-781.239885,0.00017521,2]
[393304761,1762443050453,-781.239885,0.00017521,2]
[393304762,1762443050464,-781.239885,0.00017521,2]
[393304763,1762443050475,-1008.276394,0.00017521,2]
[393304764,1762443050486,-1008.276394,0.00017521,2]
[393304765,1762443050497,-1008.276394,0.00017521,2]
[393304766,1762443050507,-781.239885,0.00017521,2]
[393304767,1762443050518,-781.239885,0.00017521,2]
[393304768,1762443050528,-781.239885,0.00017521,2]
[393304769,1762443050538,-1008.276394,0.00017521,2]
[393304770,1762443050549,-1008.276394,0.00017521,2]
[393304771,1762443050559,-781.239885,0.00017521,2]
[393304772,1762443050569,-781.239885,0.00017521,2]
[393304773,1762443050580,-1008.276394,0.00017521,2]
[393304774,1762443050591,-781.239885,0.00017521,2]
[393304775,1762443050602,-1008.276394,0.00017521,2]
[393304776,1762443050614,-781.239885,0.00017521,2]
[393304777,1762443050626,-1008.276394,0.00017521,2]
[393304778,1762443050861,-781.239885,0.00017521,2]
[393304779,1762443050874,-151.0,0.00017521,2]
[393304780,1762443050884,-781.239881,0.00017521,2]
[393304781,1762443050893,-151.0,0.00017521,2]
[393304782,1762443050903,-1008.276398,0.00017521,2]
[393304783,1762443050913,-151.0,0.00017521,2]
[393304784,1762443050922,-151.0,0.00017521,2]
[393304785,1762443050933,-151.0,0.00017521,2]
[393304786,1762443050944,-151.0,0.00017521,2]
[393304787,1762443050954,-151.0,0.00017521,2]
[393304788,1762443050963,-151.0,0.00017521,2]
[393304789,1762443050973,-151.0,0.00017521,2]
[393304790,1762443050982,-151.0,0.00017521,2]
[393304791,1762443050993,-151.0,0.00017521,2]
[393304792,1762443051002,-151.0,0.00017521,2]
[393304793,1762443051012,-151.0,0.00017521,2]
[393304794,1762443051021,-163.152806,0.00017521,2]
[393304795,1762443051032,-151.0,0.00017521,2]
[393304796,1762443051041,-151.0,0.00017521,2]
[393304797,1762443051053,-151.0,0.00017521,2]
[393304798,1762443051063,-151.0,0.00017521,2]
[393304799,1762443051075,-197.379791,0.00017521,2]
[393304800,1762443051085,-151.0,0.00017521,2]
[393304801,1762443051095,-390.009575,0.00017521,2]
[393304802,1762443051105,-390.009575,0.00017521,2]
[393304803,1762443051115,-390.009575,0.00017521,2]
[393304804,1762443051124,-390.009575,0.00017521,2]
[393304805,1762443051133,-390.009575,0.00017521,2]
[393304806,1762443051143,-390.009575,0.00017521,2]
[393304807,1762443051152,-390.009575,0.00017521,2]
[393304808,1762443051162,-390.009575,0.00017521,2]
[393304809,1762443051171,-390.009575,0.00017521,2]
[393304810,1762443051180,-390.009575,0.00017521,2]
[393304811,1762443051190,-390.009575,0.00017521,2]
[393304812,1762443051202,-390.009567,0.00017521,2]
[393304813,1762443051211,-151.0,0.00017521,2]
[393304814,1762443051220,-151.0,0.00017521,2]
[393304815,1762443051230,-151.0,0.00017521,2]
[393304816,1762443051240,-151.0,0.00017521,2]
[393304817,1762443051250,-151.0,0.00017521,2]
[393304818,1762443051261,-151.0,0.00017521,2]
[393304819,1762443051270,-170.822919,0.00017521,2]
[393304820,1762443051285,-154.714455,0.00017521,2]
[393304821,1762443051295,-159.180092,0.00017521,2]
[393304822,1762443051305,-159.180092,0.00017521,2]
[393304823,1762443051315,-159.180092,0.00017521,2]
[393304824,1762443051324,-159.180092,0.00017521,2]
[393304825,1762443051333,-159.180092,0.00017521,2]
[393304826,1762443051343,-159.180092,0.00017521,2]
[393304827,1762443051354,-159.180092,0.00017521,2]
[393304828,1762443051363,-159.180092,0.00017521,2]
[393304829,1762443051372,-159.180092,0.00017521,2]
[393304830,1762443051382,-159.180092,0.00017521,2]
[393304831,1762443051391,-159.180092,0.00017521,2]
[393304832,1762443051401,-159.180095,0.00017521,2]
[393304833,1762443051410,-151.0,0.00017521,2]
[393304834,1762443051420,-290.674522,0.00017521,2]
[393304835,1762443051429,-500.0,0.00017521,2]
[393304836,1762443051439,-151.0,0.00017521,2]
[393304837,1762443051449,-151.0,0.00017521,2]
[393304838,1762443051459,-151.0,0.00017521,2]
[393304839,1762443051469,-151.0,0.00017521,2]
[393304840,1762443051482,-151.0,0.00017521,2]
[393304841,1762443051491,-151.0,0.00017521,2]
[393304842,1762443051501,-151.0,0.00017521,2]
[393304843,1762443051510,-151.0,0.00017521,2]
[393304844,1762443051520,-151.0,0.00017521,2]
[393304845,1762443051529,-151.0,0.00017521,2]
[393304846,1762443051539,-282.427922,0.00017521,2]
[393304847,1762443051548,-151.0,0.00017521,2]
[393304848,1762443051558,-177.091548,0.00017521,2]
[393304849,1762443051568,-151.0,0.00017521,2]
[393304850,1762443051577,-177.091548,0.00017521,2]
[393304851,1762443051587,-177.091548,0.00017521,2]
[393304852,1762443051595,-177.091548,0.00017521,2]
[393304853,1762443051605,-177.091548,0.00017521,2]
[393304854,1762443051614,-151.0,0.00017521,2]
[393304855,1762443051623,-151.0,0.00017521,2]
[393304856,1762443051632,-177.091548,0.00017521,2]
[393304857,1762443051642,-177.091548,0.00017521,2]
[393304858,1762443051651,-177.091557,0.00017521,2]
[393304859,1762443051660,-151.0,0.00017521,2]
[393304860,1762443051669,-167.426808,0.00017521,2]
[393304861,1762443051681,-151.0,0.00017521,2]
[393304862,1762443051690,-151.0,0.00017521,2]
[393304863,1762443051701,-151.0,0.00017521,2]
[393304864,1762443051711,-151.0,0.00017521,2]
[393304865,1762443051720,-151.0,0.00017521,2]
[393304866,1762443051730,-151.0,0.00017521,2]
[393304867,1762443051739,-151.910097,0.00017521,2]
[393304868,1762443051749,-151.0,0.00017521,2]
[393304869,1762443051758,-151.0,0.00017521,2]
[393304870,1762443051767,-151.0,0.00017521,2]
[393304871,1762443051777,-151.0,0.00017521,2]
[393304872,1762443051786,-191.841315,0.00017521,2]
[393304873,1762443051796,-151.0,0.00017521,2]
[393304874,1762443051805,-151.0,0.00017521,2]
[393304875,1762443051814,-151.0,0.00017521,2]
[393304876,1762443051823,-151.0,0.00017521,2]
[393304877,1762443051832,-607.620306,0.00017521,2]
[393304878,1762443051841,-607.620306,0.00017521,2]
[393304879,1762443051851,-607.620306,0.00017521,2]
[393304880,1762443051860,-607.620306,0.00017521,2]
[393304881,1762443051869,-1378.608744,0.00017521,2]
[393304882,1762443051878,-1378.608744,0.00017521,2]
[393304883,1762443051887,-607.620306,0.00017521,2]
[393304884,1762443051897,-607.620306,0.00017521,2]
[393304885,1762443051906,-1378.608744,0.00017521,2]
[393304886,1762443051916,-607.620306,0.00017521,2]
[393304887,1762443051926,-1378.608744,0.00017521,2]
[393304888,1762443051935,-607.620306,0.00017521,2]
[393304889,1762443051945,-151.0,0.00017521,2]
[393304890,1762443051955,-151.0,0.00017521,2]
[393304891,1762443051965,-1378.608744,0.00017521,2]
[393304892,1762443051974,-1378.608744,0.00017521,2]
[393304893,1762443051984,-165.228689,0.00017521,2]
[393304894,1762443051993,-1378.608744,0.00017521,2]
[393304895,1762443052002,-1378.608736,0.00017521,2]
[393304896,1762443052012,-259.3175937,0.00017525,2]
[393304897,1762443052022,-150.0,0.00017549,2]
[393304898,1762443052031,-150.0,0.00017549,2]
[393304899,1762443052041,-500.0,0.00017549,2]
[393304900,1762443052050,-500.0,0.00017549,2]
[393304901,1762443052059,-684.0,0.00017549,2]
[393304902,1762443052068,-500.0,0.00017549,2]
[393304903,1762443052078,-150.0,0.00017549,2]
[393304904,1762443052098,-421.0,0.00017549,2]
[393304905,1762443052107,-500.0,0.00017549,2]
[393304906,1762443052117,-637.85515074,0.00017549,2]
[393304907,1762443052126,-150.0,0.00017549,2]
[393304908,1762443052136,-469.92776545,0.00017549,2]
[393304909,1762443052146,-150.0,0.00017549,2]
[393304910,1762443052155,-620.0,0.00017549,2]
[393304911,1762443052165,-500.0,0.00017549,2]
[393304912,1762443052175,-500.0,0.00017549,2]
[393304913,1762443052185,-500.0,0.00017549,2]
[393304914,1762443052195,-262.99860912,0.0001757,2]
[393304915,1762443052206,-219.65200309,0.00017573,2]
[393304916,1762443052215,-627.93010433,0.00017573,2]
[393304917,1762443052225,-500.0,0.00017573,2]
[393304918,1762443052234,-500.0,0.00017573,2]
[393304919,1762443052243,-500.0,0.00017573,2]
[393304920,1762443052253,-500.0,0.00017573,2]
[393304921,1762443052263,-406.97735465,0.00017573,2]
[393304922,1762443052272,-500.0,0.00017573,2]
[393304923,1762443052283,-500.0,0.00017573,2]
[393304924,1762443052294,-500.0,0.00017573,2]
[393304925,1762443052304,-500.0,0.00017573,2]
[393304926,1762443052314,-500.0,0.00017573,2]
[393304927,1762443052324,-599.95401361,0.00017573,2]
[393304928,1762443052335,-518.75704326,0.00017573,2]
[393304929,1762443052344,-500.0,0.00017573,2]
[393304930,1762443052355,-543.5220209,0.00017573,2]
[393304931,1762443052365,-279.17392985,0.00017573,2]
[393304932,1762443052375,-500.0,0.00017573,2]
[393304933,1762443052386,-353.80511689,0.00017573,2]
[393304934,1762443052396,-500.0,0.00017573,2]
[393304935,1762443052406,-500.0,0.00017573,2]
[393304936,1762443052415,-500.0,0.00017573,2]
[393304937,1762443052425,-500.0,0.00017573,2]
[393304938,1762443052434,-226.78705661,0.00017579,2]
[393304939,1762443052444,-8832.36064571,0.00017579,2]
[393304940,1762443052454,-151.0,0.00017579,2]
[393304941,1762443052464,-151.0,0.00017579,2]
[393304942,1762443052477,-151.0,0.00017579,2]
[393304943,1762443052487,-151.0,0.00017579,2]
[393304944,1762443052497,-151.0,0.00017579,2]
[393304945,1762443052507,-151.0,0.00017579,2]
[393304946,1762443052517,-151.0,0.00017579,2]
[393304947,1762443052527,-151.0,0.00017579,2]
[393304948,1762443052537,-151.0,0.00017579,2]
[393304949,1762443052549,-929.0,0.00017582,2]
[393304950,1762443052559,-150.0,0.00017585,2]
[393304951,1762443052568,-150.0,0.00017585,2]
[393304952,1762443052579,-150.0,0.00017585,2]
[393304953,1762443052589,-150.0,0.00017585,2]
[393304954,1762443052599,-150.0,0.00017585,2]
[393304955,1762443052608,-150.0,0.00017585,2]
[393304956,1762443052618,-838379.2744398,0.0001759,2]
[393304957,1762443052628,-151.0,0.0001759,2]
[393304958,1762443052638,-477.650728,0.0001759,2]
[393304959,1762443052648,-151.0,0.0001759,2]
[393304960,1762443052658,-477.650728,0.0001759,2]
[393304961,1762443052668,-151.0,0.0001759,2]
[393304962,1762443052678,-151.0,0.0001759,2]
[393304963,1762443052688,-477.650728,0.0001759,2]
[393304964,1762443052698,-477.650736,0.0001759,2]
[393304965,1762443052708,-245.877695,0.0001759,2]
[393304966,1762443052718,-245.877695,0.0001759,2]
[393304967,1762443052728,-245.877695,0.0001759,2]
[393304968,1762443052739,-245.877703,0.0001759,2]
[393304969,1762443052748,-2791.455176,0.0001759,2]
[393304970,1762443052758,-151.0,0.0001759,2]
[393304971,1762443052767,-2791.455176,0.0001759,2]
[393304972,1762443052777,-253.670252,0.0001759,2]
[393304973,1762443052787,-2791.455176,0.0001759,2]
[393304974,1762443052797,-151.0,0.0001759,2]
[393304975,1762443052807,-2791.455182,0.0001759,2]
[393304976,1762443052818,-151.0,0.0001759,2]
[393304977,1762443052828,-151.0,0.0001759,2]
[393304978,1762443052838,-151.0,0.0001759,2]
[393304979,1762443052848,-220.624148,0.0001759,2]
[393304980,1762443052858,-178.064924,0.0001759,2]
[393304981,1762443052871,-178.064924,0.0001759,2]
[393304982,1762443052881,-178.064924,0.0001759,2]
[393304983,1762443052891,-178.064924,0.0001759,2]
[393304984,1762443052901,-151.0,0.0001759,2]
[393304985,1762443052910,-151.0,0.0001759,2]
[393304986,1762443052920,-151.0,0.0001759,2]
[393304987,1762443052931,-151.0,0.0001759,2]
[393304988,1762443052947,-210.573155,0.0001759,2]
[393304989,1762443052957,-1302.48527589,0.00017596,2]
[393304990,1762443052968,-1500.0,0.00017596,2]
[393304991,1762443052978,-1500.0,0.00017596,2]
[393304992,1762443052987,-869.54119436,0.00017596,2]
[393304993,1762443052997,-1500.0,0.00017596,2]
[393304994,1762443053007,-150.55,0.000176,2]
[393304995,1762443053017,-150.0,0.000176,2]
[393304996,1762443053026,-150.0,0.000176,2]
[393304997,1762443053036,-5888.0,0.00017601,2]
[393304998,1762443053046,-162.64913491,0.00017606,2]
[393304999,1762443053056,-500.0,0.00017621,2]
[393305000,1762443053065,-266.56093673,0.00017621,2]
[393305001,1762443053075,-500.0,0.00017621,2]
[393305002,1762443053085,-150.0,0.00017621,2]
[393305003,1762443053095,-500.0,0.00017621,2]
[393305004,1762443053106,-150.82616451,0.00017621,2]
[393305005,1762443053115,-150.0,0.00017621,2]
[393305006,1762443053125,-500.0,0.00017621,2]
[393305007,1762443053134,-150.0,0.00017621,2]
[393305008,1762443053144,-500.0,0.00017621,2]
[393305009,1762443053154,-150.0,0.00017621,2]
[393305010,1762443053164,-150.0,0.00017621,2]
[393305011,1762443053174,-150.0,0.00017621,2]
[393305012,1762443053184,-500.0,0.00017621,2]
[393305013,1762443053193,-150.0,0.00017621,2]
[393305014,1762443053206,-150.0,0.00017621,2]
[393305015,1762443053216,-150.0,0.00017621,2]
[393305016,1762443053226,-151.0,0.00017621,2]
[393305017,1762443053235,-152.202453,0.00017621,2]
[393305018,1762443053245,-273.520256,0.00017621,2]
[393305019,1762443053255,-151.0,0.00017621,2]
[393305020,1762443053265,-151.0,0.00017621,2]
[393305021,1762443053275,-169.825233,0.00017621,2]
[393305022,1762443053288,-267.660745,0.00017621,2]
[393305023,1762443053298,-151.0,0.00017621,2]
[393305024,1762443053308,-500.042886,0.00017621,2]
[393305025,1762443053318,-151.0,0.00017621,2]
[393305026,1762443053328,-169.825233,0.00017621,2]
[393305027,1762443053338,-151.0,0.00017621,2]
[393305028,1762443053347,-500.042886,0.00017621,2]
[393305029,1762443053358,-169.825233,0.00017621,2]
[393305030,1762443053370,-250.291081,0.00017621,2]
[393305031,1762443053380,-500.042886,0.00017621,2]
[393305032,1762443053389,-169.825233,0.00017621,2]
[393305033,1762443053399,-500.042886,0.00017621,2]
[393305034,1762443053409,-151.0,0.00017621,2]
[393305035,1762443053419,-265.967525,0.00017621,2]
[393305036,1762443053429,-265.967525,0.00017621,2]
[393305037,1762443053438,-265.967525,0.00017621,2]
[393305038,1762443053450,-265.967525,0.00017621,2]
[393305039,1762443053460,-151.0,0.00017621,2]
[393305040,1762443053470,-151.0,0.00017621,2]
[393305041,1762443053481,-172.030553,0.00017621,2]
[393305042,1762443053490,-500.0,0.00017637,2]
[393305043,1762443053500,-500.0,0.00017637,2]
[393305044,1762443053510,-150.0,0.00017637,2]
[393305045,1762443053519,-150.0,0.00017637,2]
[393305046,1762443053529,-150.68663309,0.00017637,2]
[393305047,1762443053539,-500.0,0.00017637,2]
[393305048,1762443053548,-300.0,0.00017637,2]
[393305049,1762443053558,-960.99,0.00017641,2]
[393305050,1762443053568,-226.78705661,0.00017643,2]
[393305051,1762443053578,-8832.36064571,0.00017643,2]
[393305052,1762443053588,-500.0,0.00017649,2]
[393305053,1762443053598,-500.0,0.00017649,2]
[393305054,1762443053608,-3423.0,0.00017651,2]
[393305055,1762443053618,-574.0,0.00017651,2]
[393305056,1762443053628,-1315.0,0.00017651,2]
[393305057,1762443053638,-2141.0,0.00017651,2]
[393305058,1762443053648,-262.99860912,0.00017652,2]
[393305059,1762443053657,-5888.0,0.00017669,2]
[393305060,1762443053667,-362.35,0.00017685,2]
[393305061,1762443053676,-152.08698658,0.00017686,2]
[393305062,1762443053686,-500.0,0.00017686,2]
[393305063,1762443053695,-500.0,0.00017686,2]
[393305064,1762443053705,-684.0,0.00017686,2]
[393305065,1762443053716,-500.0,0.00017686,2]
[393305066,1762443053726,-421.0,0.00017686,2]
[393305067,1762443053735,-413.83943095,0.00017686,2]
[393305068,1762443053745,-150.0,0.00017686,2]
[393305069,1762443053755,-150.0,0.00017686,2]
[393305070,1762443053764,-500.0,0.00017686,2]
[393305071,1762443053774,-500.0,0.00017686,2]
[393305072,1762443053784,-500.0,0.00017686,2]
[393305073,1762443053794,-409.83724694,0.00017695,2]
[393305074,1762443053804,-150.0,0.000177,2]
[393305075,1762443053814,-1856.0,0.000177,2]
[393305076,1762443053823,-226.78705661,0.00017707,2]
[393305077,1762443053834,-8832.36064571,0.00017707,2]
[393305078,1762443053844,-929.0,0.00017716,2]
[393305079,1762443053854,-262.99860912,0.00017735,2]
[393305080,1762443053864,-3053.0,0.00017738,2]
[393305081,1762443053874,-152.54268606,0.00017758,2]
[393305082,1762443053884,-600.0,0.00017758,2]
[393305083,1762443053894,-150.0,0.00017758,2]
[393305084,1762443053903,-500.0,0.00017758,2]
[393305085,1762443053913,-150.0,0.00017758,2]
[393305086,1762443053923,-500.0,0.00017758,2]
[393305087,1762443053933,-150.0,0.00017758,2]
[393305088,1762443053943,-150.0,0.00017758,2]
[393305089,1762443053953,-150.37406736,0.00017758,2]
[393305090,1762443053963,-500.0,0.00017758,2]
[393305091,1762443053973,-155.02782084,0.00017758,2]
[393305092,1762443053982,-150.0,0.00017758,2]
[393305093,1762443053992,-226.78705661,0.00017772,2]
[393305094,1762443054002,-8832.36064571,0.00017772,2]
[393305095,1762443054012,-189.633908,0.00017772,2]
[393305096,1762443054021,-151.0,0.00017772,2]
[393305097,1762443054031,-332.083751,0.00017772,2]
[393305098,1762443054041,-332.083751,0.00017772,2]
[393305099,1762443054050,-151.0,0.00017772,2]
[393305100,1762443054060,-332.083751,0.00017772,2]
[393305101,1762443054069,-332.083751,0.00017772,2]
[393305102,1762443054079,-151.0,0.00017772,2]
[393305103,1762443054089,-171.720491,0.00017772,2]
[393305104,1762443054099,-151.0,0.00017772,2]
[393305105,1762443054110,-500.0,0.00017774,2]
[393305106,1762443054120,-500.0,0.00017774,2]
[393305107,1762443054129,-150.0,0.00017774,2]
[393305108,1762443054139,-150.0,0.00017774,2]
[393305109,1762443054148,-500.0,0.00017774,2]
[393305110,1762443054158,-300.0,0.00017774,2]
[393305111,1762443054168,-1552.0,0.0001778,2]
[393305112,1762443054178,-578.39525195,0.00017786,2]
[393305113,1762443054188,-500.0,0.00017786,2]
[393305114,1762443054199,-676.65,0.00017795,2]
[393305115,1762443054209,-150.0,0.000178,2]
[393305116,1762443054219,-500.0,0.00017808,2]
[393305117,1762443054229,-929.0,0.00017809,2]
[393305118,1762443054240,-262.99860912,0.00017817,2]
[393305119,1762443054249,-5888.0,0.0001782,2]
[393305120,1762443054259,-151.0,0.0001782,2]
[393305121,1762443054269,-151.0,0.0001782,2]
[393305122,1762443054279,-151.0,0.0001782,2]
[393305123,1762443054293,-151.0,0.0001782,2]
[393305124,1762443054304,-151.0,0.0001782,2]
[393305125,1762443054314,-151.0,0.0001782,2]
[393305126,1762443054324,-151.0,0.0001782,2]
[393305127,1762443054335,-331.981782,0.0001782,2]
[393305128,1762443054345,-331.981782,0.0001782,2]
[393305129,1762443054355,-331.981782,0.0001782,2]
[393305130,1762443054367,-331.981782,0.0001782,2]
[393305131,1762443054377,-151.0,0.0001782,2]
[393305132,1762443054387,-151.0,0.0001782,2]
[393305133,1762443054397,-151.0,0.0001782,2]
[393305134,1762443054406,-151.0,0.0001782,2]
[393305135,1762443054416,-151.0,0.0001782,2]
[393305136,1762443054624,-151.0,0.0001782,2]
[393305137,1762443054635,-151.0,0.0001782,2]
[393305138,1762443054645,-151.0,0.0001782,2]
[393305139,1762443054655,-151.0,0.0001782,2]
[393305140,1762443054665,-173.040665,0.0001782,2]
[393305141,1762443054675,-151.0,0.0001782,2]
[393305142,1762443054684,-173.040665,0.0001782,2]
[393305143,1762443054695,-173.040665,0.0001782,2]
[393305144,1762443054705,-173.040674,0.0001782,2]
[393305145,1762443054715,-273.263117,0.0001782,2]
[393305146,1762443054724,-273.263117,0.0001782,2]
[393305147,1762443054733,-273.263117,0.0001782,2]
[393305148,1762443054743,-273.263109,0.0001782,2]
[393305149,1762443054753,-1223.18376974,0.0001782,2]
[393305150,1762443054763,-362.35,0.00017822,2]
[393305151,1762443054772,-500.0,0.00017823,2]
[393305152,1762443054781,-500.0,0.00017823,2]
[393305153,1762443054791,-684.0,0.00017823,2]
[393305154,1762443054800,-166.33548393,0.00017823,2]
[393305155,1762443054810,-421.0,0.00017823,2]
[393305156,1762443054819,-204.17848018,0.00017823,2]
[393305157,1762443054829,-200.0,0.00017823,2]
[393305158,1762443054839,-500.0,0.00017823,2]
[393305159,1762443054848,-500.0,0.00017823,2]
[393305160,1762443054857,-500.0,0.00017823,2]
[393305161,1762443054867,-226.78705661,0.00017836,2]
[393305162,1762443054876,-8832.36064571,0.00017836,2]
[393305163,1762443054886,-151.0,0.00017836,2]
[393305164,1762443054895,-151.0,0.00017836,2]
[393305165,1762443054904,-151.0,0.00017836,2]
[393305166,1762443054914,-151.0,0.00017836,2]
[393305167,1762443054923,-151.0,0.00017836,2]
[393305168,1762443054932,-151.0,0.00017836,2]
[393305169,1762443054942,-322.896318,0.00017836,2]
[393305170,1762443054951,-322.896318,0.00017836,2]
[393305171,1762443054961,-322.896318,0.00017836,2]
[393305172,1762443054971,-322.896318,0.00017836,2]
[393305173,1762443054980,-151.0,0.00017836,2]
[393305174,1762443054990,-151.0,0.00017836,2]
[393305175,1762443054999,-151.0,0.00017836,2]
[393305176,1762443055009,-151.0,0.00017836,2]
[393305177,1762443055019,-154.960781,0.00017836,2]
[393305178,1762443055028,-151.0,0.00017836,2]
[393305179,1762443055038,-162.119014,0.00017836,2]
[393305180,1762443055047,-154.254113,0.00017836,2]
[393305181,1762443055056,-151.0,0.00017836,2]
[393305182,1762443055065,-151.0,0.00017836,2]
[393305183,1762443055076,-151.0,0.00017836,2]
[393305184,1762443055085,-151.0,0.00017836,2]
[393305185,1762443055094,-151.0,0.00017836,2]
[393305186,1762443055104,-151.0,0.00017836,2]
[393305187,1762443055113,-169.825233,0.00017836,2]
[393305188,1762443055123,-151.0,0.00017836,2]
[393305189,1762443055133,-151.0,0.00017836,2]
[393305190,1762443055142,-500.042886,0.00017836,2]
[393305191,1762443055152,-151.0,0.00017836,2]
[393305192,1762443055162,-169.825233,0.00017836,2]
[393305193,1762443055172,-190.518165,0.00017836,2]
[393305194,1762443055181,-500.042886,0.00017836,2]
[393305195,1762443055191,-169.825233,0.00017836,2]
[393305196,1762443055200,-500.042886,0.00017836,2]
[393305197,1762443055210,-169.825232,0.00017836,2]
[393305198,1762443055220,-500.042887,0.00017836,2]
[393305199,1762443055230,-151.0,0.00017836,2]
[393305200,1762443055239,-265.967525,0.00017836,2]
[393305201,1762443055249,-265.967525,0.00017836,2]
[393305202,1762443055259,-265.967525,0.00017836,2]
[393305203,1762443055268,-265.967524,0.00017836,2]